[Event "Elite Hotels Open 2024"]
[Site "Elite Stadshotellet, Kungsgatan 6, Vaxjo, Sweden"]
[Date "2024.02.09"]
[Round "3.1"]
[White "Silseth, Simon"]
[Black "Hillarp, Tiger"]
[Result "0-1"]
[TimeControl "15 minutes + 5 seconds per move from move one (Round 1 - 4) / 90 minutes + 30 seconds per move from move one (Round 5 - 8)"]
[WhiteTitle "FM"]
[BlackTitle "GM"]
[WhiteFideId "1702440"]
[BlackFideId "1700812"]
[WhiteElo "2228"]
[BlackElo "2476"]

1. c4 {[%clk 00:15:08]} e5 {[%clk 00:15:09]} {[%emt 00:00:02]} 2. Nc3 {[%clk
00:15:11]} {[%emt 00:00:02]} Bb4 {[%clk 00:15:12]} {[%emt 00:00:02]} 3. Nf3
{[%clk 00:15:13]} {[%emt 00:00:02]} Bxc3 {[%clk 00:15:16]} {[%emt 00:00:02]} 4.
bxc3 {[%clk 00:15:16]} {[%emt 00:00:02]} d6 {[%clk 00:15:18]} {[%emt 00:00:03]}
5. d3 {[%clk 00:15:18]} {[%emt 00:00:03]} f5 {[%clk 00:15:18]} {[%emt
00:00:05]} 6. g3 {[%clk 00:14:22]} {[%emt 00:01:00]} Nc6 {[%clk 00:15:06]}
{[%emt 00:00:18]} 7. Bg2 {[%clk 00:14:21]} {[%emt 00:00:05]} Nf6 {[%clk
00:15:05]} {[%emt 00:00:06]} 8. O-O {[%clk 00:14:01]} {[%emt 00:00:25]} O-O
{[%clk 00:14:55]} {[%emt 00:00:16]} 9. Rb1 {[%clk 00:13:37]} {[%emt 00:00:29]}
Rb8 {[%clk 00:14:40]} {[%emt 00:00:19]} 10. Bg5 {[%clk 00:11:21]} {[%emt
00:02:21]} Bd7 {[%clk 00:13:43]} {[%emt 00:01:03]} 11. Qc2 {[%clk 00:10:51]}
{[%emt 00:00:35]} Qe8 {[%clk 00:12:39]} {[%emt 00:01:09]} 12. Nd2 {[%clk
00:07:38]} {[%emt 00:03:17]} b6 {[%clk 00:11:59]} {[%emt 00:00:46]} 13. Bxf6
{[%clk 00:05:59]} {[%emt 00:01:44]} Rxf6 {[%clk 00:12:02]} {[%emt 00:00:02]} 14.
e3 {[%clk 00:05:48]} {[%emt 00:00:16]} Rh6 {[%clk 00:08:38]} {[%emt 00:03:28]}
15. f4 {[%clk 00:05:08]} {[%emt 00:00:45]} Qh5 {[%clk 00:08:04]} {[%emt
00:00:39]} 16. Nf3 {[%clk 00:04:48]} {[%emt 00:00:26]} Re8 {[%clk 00:07:24]}
{[%emt 00:00:45]} 17. Rbe1 {[%clk 00:03:41]} {[%emt 00:01:12]} Nd8 {[%clk
00:05:42]} {[%emt 00:01:46]} 18. Kf2 {[%clk 00:03:13]} {[%emt 00:00:34]} Rf6
{[%clk 00:05:02]} {[%emt 00:00:45]} 19. h3 {[%clk 00:02:29]} {[%emt 00:00:50]}
h6 {[%clk 00:05:04]} {[%emt 00:00:02]} 20. Rh1 {[%clk 00:02:19]} {[%emt
00:00:15]} Rff8 {[%clk 00:04:04]} {[%emt 00:01:05]} 21. d4 {[%clk 00:02:02]}
{[%emt 00:00:23]} e4 {[%clk 00:03:51]} {[%emt 00:00:18]} 22. Nd2 {[%clk
00:02:03]} {[%emt 00:00:03]} Qf7 {[%clk 00:03:34]} {[%emt 00:00:22]} 23. Bf1
{[%clk 00:02:06]} {[%emt 00:00:02]} g5 {[%clk 00:03:22]} {[%emt 00:00:18]} 24.
Be2 {[%clk 00:02:01]} {[%emt 00:00:09]} gxf4 {[%clk 00:03:16]} {[%emt
00:00:11]} 25. gxf4 {[%clk 00:02:04]} {[%emt 00:00:02]} Qf6 {[%clk 00:03:19]}
{[%emt 00:00:02]} 26. Reg1+ {[%clk 00:02:03]} {[%emt 00:00:06]} Kh8 {[%clk
00:03:21]} {[%emt 00:00:03]} 27. h4 {[%clk 00:01:54]} {[%emt 00:00:14]} Rg8
{[%clk 00:03:18]} {[%emt 00:00:08]} 28. Rg5 {[%clk 00:01:41]} {[%emt 00:00:19]}
Qe7 {[%clk 00:03:00]} {[%emt 00:00:24]} 29. Rh5 {[%clk 00:01:36]} {[%emt
00:00:09]} Rg6 {[%clk 00:02:40]} {[%emt 00:00:25]} 30. Qd1 {[%clk 00:01:29]}
{[%emt 00:00:12]} Reg8 {[%clk 00:02:26]} {[%emt 00:00:19]} 31. Qf1 {[%clk
00:01:31]} {[%emt 00:00:03]} Ne6 {[%clk 00:01:58]} {[%emt 00:00:34]} 32. Qh3
{[%clk 00:01:28]} {[%emt 00:00:07]} Nxf4 {[%clk 00:02:00]} {[%emt 00:00:04]} 33.
exf4 {[%clk 00:01:26]} {[%emt 00:00:07]} e3+ {[%clk 00:02:03]} {[%emt
00:00:01]} 34. Ke1 {[%clk 00:01:20]} {[%emt 00:00:11]} exd2+ {[%clk 00:02:05]}
{[%emt 00:00:04]} 35. Kxd2 {[%clk 00:01:23]} {[%emt 00:00:02]} Qe4 {[%clk
00:01:21]} {[%emt 00:00:48]} 36. Qf3 {[%clk 00:01:22]} {[%emt 00:00:06]} Qxf3
{[%clk 00:01:16]} {[%emt 00:00:10]} 37. Bxf3 {[%clk 00:01:26]} {[%emt
00:00:01]} Kg7 {[%clk 00:00:52]} {[%emt 00:00:28]} 38. Be2 {[%clk 00:01:18]}
{[%emt 00:00:13]} Rf6 {[%clk 00:00:48]} {[%emt 00:00:10]} 39. Bd3 {[%clk
00:01:08]} {[%emt 00:00:15]} Kf7 {[%clk 00:00:34]} {[%emt 00:00:19]} 40. Re1
{[%clk 00:00:40]} {[%emt 00:00:32]} Rg4 {[%clk 00:00:26]} {[%emt 00:00:13]} 41.
Be2 {[%clk 00:00:22]} {[%emt 00:00:24]} Rxf4 {[%clk 00:00:22]} {[%emt
00:00:09]} 42. Rg1 {[%clk 00:00:26]} Re4 {[%clk 00:00:13]} {[%emt 00:00:14]} 43.
Bf3 {[%clk 00:00:28]} {[%emt 00:00:02]} Re7 {[%clk 00:00:13]} {[%emt 00:00:06]}
44. Bd5+ {[%clk 00:00:31]} {[%emt 00:00:02]} Be6 {[%clk 00:00:16]} {[%emt
00:00:02]} 45. Bf3 {[%clk 00:00:32]} {[%emt 00:00:03]} Bxc4 {[%clk 00:00:19]}
{[%emt 00:00:02]} 46. d5 {[%clk 00:00:27]} {[%emt 00:00:10]} Re5 {[%clk
00:00:20]} {[%emt 00:00:04]} 47. a3 {[%clk 00:00:22]} {[%emt 00:00:11]} Bxd5
{[%clk 00:00:23]} {[%emt 00:00:02]} 48. Be2 {[%clk 00:00:22]} {[%emt 00:00:04]}
Be4 {[%clk 00:00:21]} {[%emt 00:00:07]} 49. Bc4+ {[%clk 00:00:21]} {[%emt
00:00:06]} d5 {[%clk 00:00:25]} {[%emt 00:00:02]} 50. Be2 {[%clk 00:00:23]}
{[%emt 00:00:04]} c5 {[%clk 00:00:29]} {[%emt 00:00:01]} 51. Rf1 {[%clk
00:00:23]} {[%emt 00:00:05]} d4 {[%clk 00:00:31]} {[%emt 00:00:03]} 52. cxd4
{[%clk 00:00:20]} {[%emt 00:00:08]} cxd4 {[%clk 00:00:34]} {[%emt 00:00:01]} 53.
Rf4 {[%clk 00:00:21]} {[%emt 00:00:04]} Rc5 {[%clk 00:00:36]} {[%emt 00:00:03]}
54. Bd3 {[%clk 00:00:16]} {[%emt 00:00:10]} Bxd3 {[%clk 00:00:39]} {[%emt
00:00:02]} 0-1

[Event "Elite Hotels Open 2024"]
[Site "Elite Stadshotellet, Kungsgatan 6, Vaxjo, Sweden"]
[Date "2024.02.09"]
[Round "3.2"]
[White "Pantzar, Milton"]
[Black "Johansson, Ulf"]
[Result "1-0"]
[TimeControl "15 minutes + 5 seconds per move from move one (Round 1 - 4) / 90 minutes + 30 seconds per move from move one (Round 5 - 8)"]
[WhiteTitle "IM"]
[WhiteFideId "1721003"]
[BlackFideId "1701380"]
[WhiteElo "2468"]
[BlackElo "2141"]

1. d4 {[%clk 00:15:07]} {[%emt 00:00:02]} Nf6 {[%clk 00:15:08]} {[%emt
00:00:02]} 2. Nf3 {[%clk 00:15:10]} {[%emt 00:00:02]} g6 {[%clk 00:15:09]}
{[%emt 00:00:05]} 3. Nbd2 {[%clk 00:15:13]} {[%emt 00:00:02]} d5 {[%clk
00:15:01]} {[%emt 00:00:13]} 4. Nb3 {[%clk 00:15:12]} {[%emt 00:00:06]} Bg7
{[%clk 00:14:57]} {[%emt 00:00:10]} 5. c3 {[%clk 00:15:14]} {[%emt 00:00:02]}
Ne4 {[%clk 00:14:04]} {[%emt 00:00:58]} 6. Bf4 {[%clk 00:14:52]} {[%emt
00:00:27]} Nd7 {[%clk 00:13:51]} {[%emt 00:00:18]} 7. e3 {[%clk 00:14:28]}
{[%emt 00:00:29]} O-O {[%clk 00:13:53]} {[%emt 00:00:03]} 8. Be2 {[%clk
00:14:23]} {[%emt 00:00:10]} c5 {[%clk 00:13:18]} {[%emt 00:00:40]} 9. O-O
{[%clk 00:14:03]} {[%emt 00:00:25]} h6 {[%clk 00:12:20]} {[%emt 00:01:03]} 10.
h3 {[%clk 00:14:01]} {[%emt 00:00:07]} b6 {[%clk 00:11:30]} {[%emt 00:00:56]}
11. Nbd2 {[%clk 00:13:21]} {[%emt 00:00:44]} Bb7 {[%clk 00:10:52]} {[%emt
00:00:44]} 12. a4 {[%clk 00:13:02]} {[%emt 00:00:24]} Nd6 {[%clk 00:10:05]}
{[%emt 00:00:50]} 13. a5 {[%clk 00:11:28]} {[%emt 00:01:40]} Qc8 {[%clk
00:08:50]} {[%emt 00:01:20]} 14. Ne5 {[%clk 00:08:50]} {[%emt 00:02:42]} Nxe5
{[%clk 00:07:37]} {[%emt 00:01:19]} 15. dxe5 {[%clk 00:08:53]} {[%emt
00:00:03]} Ne8 {[%clk 00:06:49]} {[%emt 00:00:53]} 16. Qb3 {[%clk 00:06:13]}
{[%emt 00:02:44]} bxa5 {[%clk 00:05:31]} {[%emt 00:01:24]} 17. Rxa5 {[%clk
00:06:04]} {[%emt 00:00:13]} c4 {[%clk 00:04:02]} {[%emt 00:01:35]} 18. Qa3
{[%clk 00:05:53]} {[%emt 00:00:15]} Nc7 {[%clk 00:03:45]} {[%emt 00:00:22]} 19.
Qxe7 {[%clk 00:05:12]} {[%emt 00:00:46]} Re8 {[%clk 00:03:42]} {[%emt
00:00:08]} 20. Qa3 {[%clk 00:04:07]} {[%emt 00:01:10]} Bf8 {[%clk 00:03:00]}
{[%emt 00:00:47]} 21. Qa4 {[%clk 00:02:52]} {[%emt 00:01:21]} a6 {[%clk
00:02:53]} {[%emt 00:00:12]} 22. Bg4 {[%clk 00:02:23]} {[%emt 00:00:34]} Ne6
{[%clk 00:02:23]} {[%emt 00:00:35]} 23. Nf3 {[%clk 00:02:13]} {[%emt 00:00:13]}
Qc7 {[%clk 00:01:43]} {[%emt 00:00:46]} 24. Bxe6 {[%clk 00:02:10]} {[%emt
00:00:08]} Rxe6 {[%clk 00:01:42]} {[%emt 00:00:07]} 25. Nd4 {[%clk 00:02:12]}
{[%emt 00:00:02]} Rb6 {[%clk 00:01:28]} {[%emt 00:00:19]} 26. e6 {[%clk
00:01:43]} {[%emt 00:00:34]} Qe7 {[%clk 00:01:13]} {[%emt 00:00:20]} 27. exf7+
{[%clk 00:01:45]} {[%emt 00:00:02]} Qxf7 {[%clk 00:01:16]} {[%emt 00:00:02]} 28.
Qc2 {[%clk 00:01:14]} {[%emt 00:00:35]} Re8 {[%clk 00:01:09]} {[%emt 00:00:12]}
29. Bg3 {[%clk 00:00:54]} {[%emt 00:00:25]} Bg7 {[%clk 00:00:53]} {[%emt
00:00:22]} 30. Rc5 {[%clk 00:00:40]} {[%emt 00:00:19]} Re7 {[%clk 00:00:40]}
{[%emt 00:00:18]} 31. b4 {[%clk 00:00:28]} {[%emt 00:00:17]} cxb3 {[%clk
00:00:42]} {[%emt 00:00:02]} 32. Nxb3 {[%clk 00:00:32]} {[%emt 00:00:02]} Qf6
{[%clk 00:00:33]} {[%emt 00:00:14]} 33. Nd4 {[%clk 00:00:32]} {[%emt 00:00:05]}
h5 {[%clk 00:00:35]} {[%emt 00:00:02]} 34. Bc7 {[%clk 00:00:26]} {[%emt
00:00:12]} Kh7 {[%clk 00:00:10]} {[%emt 00:00:30]} 35. c4 {[%clk 00:00:21]}
{[%emt 00:00:10]} dxc4 {[%clk 00:00:12]} {[%emt 00:00:03]} 36. Bxb6 {[%clk
00:00:23]} {[%emt 00:00:03]} Qxb6 {[%clk 00:00:16]} 37. Rxh5+ {[%clk 00:00:26]}
{[%emt 00:00:02]} Bh6 {[%clk 00:00:15]} {[%emt 00:00:05]} 38. Rb1 {[%clk
00:00:19]} {[%emt 00:00:12]} Be4 {[%clk 00:00:17]} {[%emt 00:00:03]} 39. Rxb6
{[%clk 00:00:21]} {[%emt 00:00:03]} Bxc2 {[%clk 00:00:21]} 40. Rxh6+ {[%clk
00:00:20]} {[%emt 00:00:06]} 1-0

[Event "Elite Hotels Open 2024"]
[Site "Elite Stadshotellet, Kungsgatan 6, Vaxjo, Sweden"]
[Date "2024.02.09"]
[Round "3.3"]
[White "Frisk, Ellinor"]
[Black "Seo, Jung Min"]
[Result "0-1"]
[TimeControl "15 minutes + 5 seconds per move from move one (Round 1 - 4) / 90 minutes + 30 seconds per move from move one (Round 5 - 8)"]
[WhiteTitle "WIM"]
[BlackTitle "IM"]
[WhiteFideId "1708481"]
[BlackFideId "1734687"]
[WhiteElo "2141"]
[BlackElo "2466"]

1. Nf3 {[%clk 00:15:08]} {[%emt 00:00:02]} Nf6 {[%clk 00:15:09]} {[%emt
00:00:02]} 2. c4 {[%clk 00:15:04]} {[%emt 00:00:08]} e6 {[%clk 00:15:09]}
{[%emt 00:00:06]} 3. g3 {[%clk 00:15:06]} {[%emt 00:00:03]} b6 {[%clk
00:14:46]} {[%emt 00:00:29]} 4. Bg2 {[%clk 00:15:01]} {[%emt 00:00:09]} Bb7
{[%clk 00:14:47]} {[%emt 00:00:04]} 5. O-O {[%clk 00:15:02]} {[%emt 00:00:04]}
c5 {[%clk 00:14:51]} 6. d4 {[%clk 00:14:55]} {[%emt 00:00:12]} cxd4 {[%clk
00:14:54]} {[%emt 00:00:01]} 7. Qxd4 {[%clk 00:14:58]} {[%emt 00:00:02]} Be7
{[%clk 00:14:47]} {[%emt 00:00:12]} 8. Nc3 {[%clk 00:14:44]} {[%emt 00:00:20]}
O-O {[%clk 00:14:50]} {[%emt 00:00:02]} 9. Nb5 {[%clk 00:13:33]} {[%emt
00:01:16]} Na6 {[%clk 00:13:14]} {[%emt 00:01:41]} 10. Nd6 {[%clk 00:12:48]}
{[%emt 00:00:49]} Bc6 {[%clk 00:13:14]} {[%emt 00:00:06]} 11. Bg5 {[%clk
00:11:01]} {[%emt 00:01:51]} h6 {[%clk 00:13:03]} {[%emt 00:00:16]} 12. Bxf6
{[%clk 00:10:38]} {[%emt 00:00:28]} Bxf6 {[%clk 00:13:07]} {[%emt 00:00:01]} 13.
Qd2 {[%clk 00:10:41]} {[%emt 00:00:02]} Nc5 {[%clk 00:13:04]} {[%emt 00:00:08]}
14. Nd4 {[%clk 00:09:24]} {[%emt 00:01:22]} Bxg2 {[%clk 00:13:07]} {[%emt
00:00:02]} 15. Kxg2 {[%clk 00:09:27]} {[%emt 00:00:02]} Qc7 {[%clk 00:12:59]}
{[%emt 00:00:12]} 16. N6b5 {[%clk 00:07:01]} {[%emt 00:02:32]} Qb7+ {[%clk
00:13:02]} {[%emt 00:00:03]} 17. Kg1 {[%clk 00:06:29]} {[%emt 00:00:37]} Ne4
{[%clk 00:09:50]} {[%emt 00:03:15]} 18. Qd3 {[%clk 00:06:30]} {[%emt 00:00:05]}
a6 {[%clk 00:09:49]} {[%emt 00:00:07]} 19. Nc3 {[%clk 00:06:08]} {[%emt
00:00:26]} Nxc3 {[%clk 00:09:52]} {[%emt 00:00:02]} 20. Qxc3 {[%clk 00:04:36]}
{[%emt 00:01:37]} Rac8 {[%clk 00:09:17]} {[%emt 00:00:40]} 21. Qd3 {[%clk
00:04:32]} {[%emt 00:00:10]} d5 {[%clk 00:09:19]} {[%emt 00:00:02]} 22. cxd5
{[%clk 00:01:59]} {[%emt 00:02:39]} Qxd5 {[%clk 00:09:22]} {[%emt 00:00:02]} 23.
Rfd1 {[%clk 00:01:39]} {[%emt 00:00:24]} Rfd8 {[%clk 00:08:21]} {[%emt
00:01:06]} 24. Qxa6 {[%clk 00:01:24]} {[%emt 00:00:21]} Ra8 {[%clk 00:08:23]}
{[%emt 00:00:02]} 25. Qb5 {[%clk 00:00:59]} {[%emt 00:00:31]} Bxd4 {[%clk
00:08:23]} {[%emt 00:00:04]} 26. Qxd5 {[%clk 00:01:03]} {[%emt 00:00:02]} Rxd5
{[%clk 00:08:26]} {[%emt 00:00:02]} 27. e3 {[%clk 00:01:07]} {[%emt 00:00:01]}
Bxb2 {[%clk 00:08:27]} {[%emt 00:00:04]} 0-1

[Event "Elite Hotels Open 2024"]
[Site "Elite Stadshotellet, Kungsgatan 6, Vaxjo, Sweden"]
[Date "2024.02.09"]
[Round "3.4"]
[White "Hector, Jonny"]
[Black "Nilsson, Eskil"]
[Result "1-0"]
[TimeControl "15 minutes + 5 seconds per move from move one (Round 1 - 4) / 90 minutes + 30 seconds per move from move one (Round 5 - 8)"]
[WhiteTitle "GM"]
[WhiteFideId "1700090"]
[BlackFideId "1716220"]
[WhiteElo "2449"]
[BlackElo "2117"]

1. e4 {[%clk 00:15:05]} {[%emt 00:00:03]} c5 {[%clk 00:15:08]} {[%emt
00:00:03]} 2. Nf3 {[%clk 00:15:08]} {[%emt 00:00:02]} d6 {[%clk 00:15:11]}
{[%emt 00:00:03]} 3. d4 {[%clk 00:15:11]} {[%emt 00:00:01]} cxd4 {[%clk
00:15:14]} {[%emt 00:00:03]} 4. Nxd4 {[%clk 00:15:14]} {[%emt 00:00:01]} Nf6
{[%clk 00:15:16]} {[%emt 00:00:03]} 5. Nc3 {[%clk 00:15:17]} {[%emt 00:00:02]}
Nc6 {[%clk 00:15:17]} {[%emt 00:00:04]} 6. Bg5 {[%clk 00:15:18]} {[%emt
00:00:03]} e6 {[%clk 00:15:19]} {[%emt 00:00:04]} 7. Qd2 {[%clk 00:15:20]}
{[%emt 00:00:03]} a6 {[%clk 00:15:18]} {[%emt 00:00:06]} 8. O-O-O {[%clk
00:15:18]} {[%emt 00:00:07]} Bd7 {[%clk 00:15:19]} {[%emt 00:00:04]} 9. f4
{[%clk 00:15:18]} {[%emt 00:00:05]} Be7 {[%clk 00:15:16]} {[%emt 00:00:08]} 10.
Nf3 {[%clk 00:15:11]} {[%emt 00:00:12]} b5 {[%clk 00:14:56]} {[%emt 00:00:25]}
11. Bd3 {[%clk 00:14:57]} {[%emt 00:00:19]} b4 {[%clk 00:14:30]} {[%emt
00:00:31]} 12. Ne2 {[%clk 00:14:45]} {[%emt 00:00:17]} O-O {[%clk 00:13:08]}
{[%emt 00:01:28]} 13. h4 {[%clk 00:13:35]} {[%emt 00:01:14]} Ng4 {[%clk
00:12:23]} {[%emt 00:00:50]} 14. Bxe7 {[%clk 00:13:14]} {[%emt 00:00:26]} Qxe7
{[%clk 00:12:22]} {[%emt 00:00:06]} 15. Ng3 {[%clk 00:12:55]} {[%emt 00:00:24]}
e5 {[%clk 00:09:38]} {[%emt 00:02:50]} 16. f5 {[%clk 00:11:20]} {[%emt
00:01:39]} Rfc8 {[%clk 00:08:37]} {[%emt 00:01:07]} 17. Bc4 {[%clk 00:10:58]}
{[%emt 00:00:27]} Na5 {[%clk 00:08:17]} {[%emt 00:00:25]} 18. Qxd6 {[%clk
00:08:56]} {[%emt 00:02:05]} Qxd6 {[%clk 00:08:19]} {[%emt 00:00:04]} 19. Rxd6
{[%clk 00:09:00]} {[%emt 00:00:02]} Rxc4 {[%clk 00:07:55]} {[%emt 00:00:29]} 20.
Rxd7 {[%clk 00:09:02]} {[%emt 00:00:01]} Rac8 {[%clk 00:07:43]} {[%emt
00:00:19]} 21. Kb1 {[%clk 00:07:57]} {[%emt 00:01:09]} Rxc2 {[%clk 00:07:25]}
{[%emt 00:00:23]} 22. Rhd1 {[%clk 00:07:53]} {[%emt 00:00:10]} h6 {[%clk
00:06:56]} {[%emt 00:00:34]} 23. Rd8+ {[%clk 00:07:01]} {[%emt 00:00:56]} Kh7
{[%clk 00:06:59]} {[%emt 00:00:02]} 24. Rxc8 {[%clk 00:06:55]} {[%emt
00:00:11]} Rxc8 {[%clk 00:07:02]} {[%emt 00:00:03]} 25. b3 {[%clk 00:05:54]}
{[%emt 00:01:05]} Nc6 {[%clk 00:04:56]} {[%emt 00:02:11]} 26. Rc1 {[%clk
00:05:39]} {[%emt 00:00:20]} Ne7 {[%clk 00:04:36]} {[%emt 00:00:25]} 27. Nf1
{[%clk 00:04:38]} {[%emt 00:01:06]} g6 {[%clk 00:04:12]} {[%emt 00:00:30]} 28.
fxg6+ {[%clk 00:04:30]} {[%emt 00:00:12]} Kxg6 {[%clk 00:04:01]} {[%emt
00:00:16]} 29. Rd1 {[%clk 00:03:52]} {[%emt 00:00:43]} f5 {[%clk 00:03:07]}
{[%emt 00:00:59]} 30. Rd6+ {[%clk 00:03:53]} {[%emt 00:00:04]} Kf7 {[%clk
00:02:55]} {[%emt 00:00:17]} 31. N1d2 {[%clk 00:03:41]} {[%emt 00:00:17]} fxe4
{[%clk 00:02:35]} {[%emt 00:00:25]} 32. Nxe4 {[%clk 00:03:43]} {[%emt
00:00:03]} Rc6 {[%clk 00:02:23]} {[%emt 00:00:16]} 33. Rd8 {[%clk 00:03:27]}
{[%emt 00:00:22]} Ke6 {[%clk 00:01:59]} {[%emt 00:00:29]} 34. Nfd2 {[%clk
00:02:50]} {[%emt 00:00:42]} Kf5 {[%clk 00:01:36]} {[%emt 00:00:27]} 35. Rf8+
{[%clk 00:02:52]} {[%emt 00:00:04]} Ke6 {[%clk 00:00:55]} {[%emt 00:00:46]} 36.
h5 {[%clk 00:02:51]} {[%emt 00:00:07]} Nd5 {[%clk 00:00:47]} {[%emt 00:00:13]}
37. Nc4 {[%clk 00:02:36]} {[%emt 00:00:19]} Nf4 {[%clk 00:00:24]} {[%emt
00:00:28]} 38. Re8+ {[%clk 00:02:13]} {[%emt 00:00:28]} Kd5 {[%clk 00:00:22]}
{[%emt 00:00:08]} 39. Ng3 {[%clk 00:02:01]} {[%emt 00:00:16]} Kd4 {[%clk
00:00:24]} {[%emt 00:00:03]} 40. Rd8+ {[%clk 00:02:01]} {[%emt 00:00:06]} Kc3
{[%clk 00:00:25]} {[%emt 00:00:03]} 41. Ne4# {[%clk 00:02:01]} {[%emt
00:00:04]} 1-0

[Event "Elite Hotels Open 2024"]
[Site "Elite Stadshotellet, Kungsgatan 6, Vaxjo, Sweden"]
[Date "2024.02.09"]
[Round "3.5"]
[White "Mejvik, Jacob"]
[Black "Johansson, Linus"]
[Result "0-1"]
[TimeControl "15 minutes + 5 seconds per move from move one (Round 1 - 4) / 90 minutes + 30 seconds per move from move one (Round 5 - 8)"]
[BlackTitle "IM"]
[WhiteFideId "1710621"]
[BlackFideId "1711113"]
[WhiteElo "2103"]
[BlackElo "2434"]

1. e4 {[%clk 00:15:08]} {[%emt 00:00:02]} e6 {[%clk 00:14:57]} {[%emt
00:00:13]} 2. d4 {[%clk 00:15:11]} {[%emt 00:00:02]} d5 {[%clk 00:15:01]} 3.
Nc3 {[%clk 00:15:15]} Bb4 {[%clk 00:15:04]} {[%emt 00:00:02]} 4. e5 {[%clk
00:15:17]} {[%emt 00:00:04]} c5 {[%clk 00:15:08]} 5. a3 {[%clk 00:15:21]}
{[%emt 00:00:02]} Bxc3+ {[%clk 00:15:11]} {[%emt 00:00:01]} 6. bxc3 {[%clk
00:15:25]} Ne7 {[%clk 00:15:15]} {[%emt 00:00:02]} 7. Qg4 {[%clk 00:15:28]}
{[%emt 00:00:02]} Qc7 {[%clk 00:15:17]} {[%emt 00:00:02]} 8. Bd3 {[%clk
00:15:25]} {[%emt 00:00:08]} c4 {[%clk 00:15:20]} {[%emt 00:00:02]} 9. Be2
{[%clk 00:15:22]} {[%emt 00:00:08]} Qa5 {[%clk 00:15:24]} 10. Bd2 {[%clk
00:12:59]} {[%emt 00:02:28]} Nf5 {[%clk 00:15:27]} {[%emt 00:00:02]} 11. Nh3
{[%clk 00:11:59]} {[%emt 00:01:05]} Nc6 {[%clk 00:15:26]} {[%emt 00:00:07]} 12.
Nf4 {[%clk 00:11:30]} {[%emt 00:00:33]} Bd7 {[%clk 00:15:01]} {[%emt 00:00:30]}
13. Qh3 {[%clk 00:09:07]} {[%emt 00:02:28]} Qa4 {[%clk 00:14:32]} {[%emt
00:00:34]} 14. Ra2 {[%clk 00:06:25]} {[%emt 00:02:48]} O-O-O {[%clk 00:14:22]}
{[%emt 00:00:14]} 15. O-O {[%clk 00:06:15]} {[%emt 00:00:16]} b6 {[%clk
00:13:30]} {[%emt 00:00:57]} 16. g4 {[%clk 00:06:01]} {[%emt 00:00:18]} Nfe7
{[%clk 00:13:34]} {[%emt 00:00:02]} 17. Nh5 {[%clk 00:06:05]} Rhg8 {[%clk
00:13:38]} {[%emt 00:00:02]} 18. f4 {[%clk 00:06:08]} {[%emt 00:00:01]} Kb8
{[%clk 00:07:28]} {[%emt 00:06:15]} 19. Bf3 {[%clk 00:06:12]} {[%emt 00:00:01]}
Rdf8 {[%clk 00:07:23]} {[%emt 00:00:10]} 20. Bg2 {[%clk 00:06:16]} f6 {[%clk
00:07:05]} {[%emt 00:00:24]} 21. Qg3 {[%clk 00:05:10]} {[%emt 00:01:11]} Kb7
{[%clk 00:06:51]} {[%emt 00:00:19]} 22. Re1 {[%clk 00:03:58]} {[%emt 00:01:16]}
f5 {[%clk 00:06:22]} {[%emt 00:00:34]} 23. h3 {[%clk 00:03:33]} {[%emt
00:00:29]} Be8 {[%clk 00:06:19]} {[%emt 00:00:09]} 24. Qh4 {[%emt 00:00:14]}
Bxh5 25. Qxh5 {[%clk 00:03:30]} h6 {[%clk 00:05:32]} {[%emt 00:00:10]} 26. Rf1
{[%clk 00:02:06]} {[%emt 00:01:29]} Ka6 {[%clk 00:05:08]} {[%emt 00:00:30]} 27.
Qh4 {[%clk 00:02:09]} {[%emt 00:00:01]} Rh8 {[%clk 00:03:26]} {[%emt 00:01:47]}
28. Qe1 {[%clk 00:02:07]} {[%emt 00:00:06]} Rfg8 {[%clk 00:02:54]} {[%emt
00:00:37]} 29. Qc1 {[%clk 00:01:57]} {[%emt 00:00:16]} g6 {[%clk 00:02:44]}
{[%emt 00:00:15]} 30. Kf2 {[%clk 00:01:17]} {[%emt 00:00:45]} fxg4 {[%clk
00:02:48]} {[%emt 00:00:02]} 31. hxg4 {[%clk 00:01:21]} h5 {[%clk 00:02:52]} 32.
Bf3 {[%clk 00:01:18]} {[%emt 00:00:08]} hxg4 {[%clk 00:02:53]} {[%emt
00:00:04]} 33. Bxg4 {[%clk 00:01:22]} Nf5 {[%clk 00:02:46]} {[%emt 00:00:12]}
34. Rh1 {[%clk 00:01:25]} {[%emt 00:00:02]} Nce7 {[%clk 00:02:44]} {[%emt
00:00:07]} 35. Rxh8 {[%clk 00:00:46]} {[%emt 00:00:44]} Rxh8 {[%clk 00:02:48]}
36. Kg2 {[%clk 00:00:44]} {[%emt 00:00:07]} Qe8 {[%clk 00:02:44]} {[%emt
00:00:09]} 37. a4 {[%clk 00:00:41]} {[%emt 00:00:08]} Qf7 {[%clk 00:02:31]}
{[%emt 00:00:18]} 38. Qb1 {[%clk 00:00:36]} {[%emt 00:00:11]} Qh7 {[%clk
00:02:06]} {[%emt 00:00:30]} 39. Qb5+ {[%clk 00:00:40]} {[%emt 00:00:02]} Kb7
{[%clk 00:02:10]} 40. Qd7+ {[%clk 00:00:43]} {[%emt 00:00:01]} Ka8 {[%clk
00:02:14]} 41. Kf3 {[%clk 00:00:17]} {[%emt 00:00:32]} Qh1+ {[%clk 00:02:12]}
{[%emt 00:00:08]} 42. Ke2 {[%clk 00:00:14]} {[%emt 00:00:08]} Rh2# {[%clk
00:02:14]} {[%emt 00:00:02]} 0-1